bitfinex-derivatives/quotes_ETHF0:USTF0_20251203
["timestamp","ask_amount","ask_price","bid_price","bid_amount"]
[1764802639688,14.9215,3192.6,3192.5,4.04482098]
[1764802640194,14.9252783,3192.6,3192.5,4.04851185]
[1764802641190,14.9252783,3192.6,3192.5,4.04686685]
[1764802641495,14.9215,3192.3,3192.2,0.00470123]
[1764802641693,14.9215,3191.5,3191.4,3.2078]
[1764802642286,14.9215,3191.5,3191.4,3.21025802]
[1764802642486,18.1293,3191.5,3191.4,0.00245802]
[1764802642890,22.441,3191.5,3191.4,0.00245802]
[1764802643085,3.2078,3191.5,3191.4,7.28555802]
[1764802643292,22.441,3191.5,3191.4,0.00245802]
[1764802645887,18.1293,3191.5,3191.4,7.28555802]
[1764802646093,22.441,3191.5,3191.4,0.00245802]
[1764802646300,14.9215,3191.2,3191.1,0.0046913]
[1764802646500,27.8405,3191.2,3191.1,0.0046913]
[1764802647003,14.9215,3190.7,3190.6,3.2078]
[1764802647303,27.8405,3190.7,3190.6,0.00346627]
[1764802648802,20.7111,3190.7,3190.6,15.06796627]
[1764802649906,12.919,3190.7,3190.6,15.06796627]
[1764802650299,4.31640123,3191.0,3190.6,15.06796627]
[1764802650502,0.00470123,3191.0,3190.6,15.06796627]
[1764802651406,0.00470123,3191.0,3190.9,15.0645]
[1764802652006,0.00470123,3191.0,3190.9,21.0645]
[1764802652214,0.00470123,3191.0,3190.9,15.0645]
[1764802652510,11.927,3191.9,3191.0,4.2757]
[1764802653110,19.7191,3191.9,3191.8,7.2831]
[1764802653408,26.8485,3191.9,3191.5,0.00470123]
[1764802653622,26.8485,3191.9,3191.6,0.83222087]
[1764802653805,26.8485,3191.9,3191.5,0.00470123]
[1764802654113,7.0732,3191.7,3191.6,8.44363145]
[1764802654314,11.927,3191.9,3191.6,16.07057428]
[1764802654516,11.927,3191.9,3191.8,15.2384]
[1764802654709,19.0002,3191.9,3191.8,15.2384]
[1764802654914,26.3387,3191.9,3191.5,0.00470123]
[1764802655107,7.0732,3191.7,3191.6,8.44357174]
[1764802655312,0.00470123,3192.2,3191.6,16.07057174]
[1764802655612,0.00470123,3192.2,3191.6,15.2384]
[1764802656404,3.2078,3192.1,3191.6,15.2384]
[1764802656614,7.0732,3191.7,3191.6,15.2384]
[1764802656811,14.4117,3191.6,3191.5,0.00470123]
[1764802659517,4.489,3191.5,3190.6,3.21126627]
[1764802659717,4.489,3191.5,3190.7,0.83261737]
[1764802659916,7.4846,3190.9,3190.8,7.89251737]
[1764802660118,3.2078,3191.7,3190.8,15.39671737]
[1764802660316,3.2078,3191.7,3191.0,4.3211]
[1764802660519,3.2078,3191.7,3191.1,0.83261737]
[1764802660723,3.2078,3191.7,3191.0,4.3211]
[1764802661017,7.4846,3191.2,3191.1,7.89268346]
[1764802661217,7.4846,3191.2,3191.1,15.39688346]
[1764802661512,15.3016,3191.2,3191.1,15.39688346]
[1764802661716,15.3016,3191.2,3191.1,0.83278346]
[1764802662219,15.3016,3191.2,3191.1,4.04058346]
[1764802662611,15.3016,3191.2,3191.1,11.10048346]
[1764802662819,7.4846,3191.2,3191.1,11.10048346]
[1764802663112,15.3016,3191.2,3191.1,4.04058346]
[1764802663914,15.3016,3191.2,3191.1,3.2078]
[1764802664114,15.3016,3190.7,3190.6,0.00346627]
[1764802664316,15.3016,3190.7,3190.6,0.83717049]
[1764802664917,15.3016,3189.9,3189.6,0.82257952]
[1764802665221,15.3016,3189.7,3189.6,7.0599]
[1764802665717,7.6968,3190.0,3189.1,0.82257952]
[1764802665718,7.817,3189.3,3189.1,0.82257952]
[1764802665914,15.3016,3188.9,3188.8,3.2078]
[1764802666120,15.3016,3188.9,3188.8,3.21071867]
[1764802666616,15.3016,3188.9,3188.8,0.00291867]
[1764802667920,18.5094,3188.9,3188.8,0.00291867]
[1764802668424,24.66618,3188.9,3188.8,0.00291867]
[1764802668822,24.66618,3188.9,3186.7,3.2078]
[1764802668823,15.3016,3186.8,3186.7,3.2078]
[1764802669021,4.489,3188.4,3186.7,3.2078]
[1764802669022,0.00470123,3187.1,3186.7,3.2078]
[1764802669322,0.00470123,3187.1,3187.0,7.0599]
[1764802669517,7.6968,3188.4,3187.4,14.5641]
[1764802669723,4.489,3188.4,3187.4,14.5641]
[1764802669923,7.69992104,3188.4,3187.4,14.5663315]
[1764802670127,3.2078,3188.0,3187.4,14.5663315]
[1764802670526,3.21250123,3188.0,3187.4,14.57103273]
[1764802670820,3.21250123,3188.0,3187.9,7.0599]
[1764802670821,0.00470123,3188.0,3187.9,7.0599]
[1764802671022,0.00312104,3188.4,3187.9,14.5641]
[1764802671227,0.00312104,3188.4,3188.3,14.5641]
[1764802674328,0.00470123,3188.7,3188.6,14.5641]
[1764802674628,0.00470123,3188.7,3188.6,7.0599]
[1764802675326,0.00706139,3188.7,3188.6,7.0599]
[1764802675723,15.30866139,3188.7,3188.2,3.2078]
[1764802677330,7.49166139,3188.7,3188.2,3.2078]
[1764802678434,0.00706139,3188.7,3188.6,7.0599]
[1764802680243,7.49166139,3188.7,3188.6,7.0599]
[1764802680531,7.49166139,3188.7,3188.2,3.2078]
[1764802682334,7.49166139,3188.7,3188.6,7.0599]
[1764802683732,0.00706139,3188.7,3188.6,14.5641]
[1764802683929,7.61246139,3188.7,3188.6,14.5641]
[1764802684833,0.00706139,3188.7,3188.6,14.5641]
[1764802685836,15.09366139,3188.7,3188.2,3.2078]
[1764802686334,15.09366139,3188.7,3188.6,3.2078]
[1764802686637,15.09366139,3188.7,3188.6,10.5301]
[1764802688942,7.61246139,3188.7,3188.6,18.1443]
[1764802689535,15.09366139,3188.7,3188.6,18.1443]
[1764802689734,7.61246139,3188.7,3188.6,18.1443]
[1764802690134,3.2078,3189.3,3189.2,14.9365]
[1764802690337,6.35750225,3190.8,3189.5,19.4705]
[1764802690338,3.2078,3189.9,3189.5,19.4705]
[1764802690538,10.8132,3189.9,3189.8,7.3223]
[1764802690845,18.2944,3189.9,3189.8,7.3223]
[1764802691143,18.29743146,3189.9,3189.8,7.32580875]
[1764802692242,18.29743146,3189.9,3189.8,0.00350875]
[1764802692636,15.08963146,3189.9,3189.8,0.00350875]
[1764802693842,14.76809267,3189.9,3189.8,7.32580875]
[1764802694243,14.76809267,3189.9,3189.8,8.1517185]
[1764802694946,14.76809267,3189.9,3189.8,0.8294185]
[1764802695443,14.76809267,3189.9,3189.8,4.6174185]
[1764802696337,14.76809267,3189.9,3189.8,0.8294185]
[1764802696542,14.76809267,3189.9,3189.8,0.00350875]
[1764802696944,20.76809267,3189.9,3189.8,0.00350875]
[1764802698036,23.97589267,3189.9,3189.8,0.00350875]
[1764802699439,5.52116721,3192.6,3192.5,7.3223]
[1764802699642,7.6054,3192.6,3192.3,3.2078]
[1764802699846,4.5572,3193.0,3192.3,3.2078]
[1764802699847,4.5572,3193.0,3192.5,7.3223]
[1764802700045,7.6054,3192.9,3192.8,0.82257952]
[1764802700244,7.6054,3192.9,3192.8,0.82549585]
[1764802700440,0.00306246,3192.9,3192.8,15.76486466]
[1764802700646,0.00306246,3192.9,3192.8,16.5883762]
[1764802700945,0.00306246,3192.9,3192.8,15.76486466]
[1764802701654,0.00306246,3192.9,3192.8,18.98559923]
[1764802702548,15.08966246,3192.9,3192.8,4.04909923]
[1764802702753,15.08966246,3192.9,3192.8,0.00286881]
[1764802703446,0.00470123,3193.2,3192.8,18.16010338]
[1764802703749,3.2078,3194.2,3193.1,18.1443]
[1764802703942,3.2078,3194.2,3193.5,3.2078]
[1764802704142,7.6054,3193.6,3193.5,3.2078]
[1764802704548,7.60835052,3193.6,3193.5,3.2078]
[1764802704851,15.08955052,3193.6,3193.5,3.2078]
[1764802705050,15.08955052,3193.6,3193.1,3.2078]
[1764802705746,7.6054,3193.2,3193.1,3.2078]
[1764802710256,7.6054,3193.2,3193.1,6.42853457]
[1764802711156,7.6054,3193.2,3193.1,3.22073457]
[1764802711356,15.0866,3193.2,3193.1,3.22073457]
[1764802711657,15.0866,3193.2,3193.1,6.42853457]
[1764802713353,15.0866,3193.2,3193.1,13.75083457]
[1764802713548,15.0866,3193.2,3193.1,6.42853457]
[1764802716555,15.0866,3193.2,3193.1,13.52823457]
[1764802716755,4.5572,3193.5,3192.8,0.00286881]
[1764802716756,14.49,3192.9,3192.8,0.00286881]
[1764802717153,14.49,3192.8,3192.7,3.15956411]
[1764802717357,14.49,3192.8,3192.7,6.38029868]
[1764802717757,14.49,3192.8,3192.7,3.15956411]
[1764802718065,14.49,3192.8,3192.7,3.1632121]
[1764802720057,15.0626,3192.3,3191.8,0.87570021]
[1764802720358,15.0626,3191.5,3191.4,10.53303457]
[1764802720558,7.4984,3191.5,3191.4,10.53303457]
[1764802720760,4.434,3192.0,3191.4,17.99143457]
[1764802720961,4.43870123,3192.0,3191.4,17.99997204]
[1764802721263,7.4984,3191.5,3191.4,17.99997204]
[1764802721460,15.0626,3191.5,3191.4,10.54157204]
[1764802721663,15.0626,3191.5,3191.4,7.01727204]
[1764802722157,18.5736,3191.5,3191.4,7.01727204]
[1764802722864,15.0626,3191.5,3191.4,7.01727204]
[1764802725570,4.43870123,3192.0,3191.4,21.78797204]
[1764802725776,15.0626,3191.5,3191.4,14.32957204]
[1764802727556,15.0626,3191.5,3191.4,7.01727204]
[1764802727767,18.6969,3191.5,3191.4,7.01727204]
[1764802727966,18.6969,3191.5,3191.4,3.22927204]
[1764802731070,18.6969,3191.5,3191.4,0.00853747]
[1764802732968,18.6969,3191.5,3191.4,3.22927204]
[1764802740471,18.6969,3191.5,3191.4,17.99997204]
[1764802740472,15.0626,3191.5,3191.4,17.99997204]
[1764802740776,15.0626,3191.5,3191.4,0.00853747]
[1764802741276,15.0626,3191.5,3191.4,7.32083747]
[1764802743175,15.0626,3191.5,3191.4,8.17728367]
[1764802744271,19.3943,3191.5,3191.4,0.00853747]
[1764802744470,11.6987,3191.0,3190.9,4.60891431]
[1764802744671,18.8513,3190.5,3190.4,0.82091431]
[1764802744969,14.6731,3190.0,3189.9,7.99501431]
[1764802745163,14.6731,3190.0,3189.9,7.1741]
[1764802745675,31.87183963,3190.0,3189.9,0.00332914]
[1764802745875,35.07963963,3190.0,3189.9,0.00332914]
[1764802752587,7.367,3189.7,3189.6,0.00470123]
[1764802752788,14.6731,3189.7,3189.6,3.79270123]
[1764802753786,14.6731,3189.7,3189.6,3.79499759]
[1764802756298,14.6731,3189.7,3189.6,10.96909759]
[1764802756892,7.367,3189.7,3189.6,18.72359759]
[1764802757094,3.09173434,3190.0,3189.9,14.9286]
[1764802757392,7.37170123,3190.3,3190.2,14.9286]
[1764802757898,7.37170123,3190.3,3190.2,15.7764085]
[1764802758098,0.00692694,3190.3,3190.2,15.7764085]
[1764802763097,17.8809,3191.3,3191.2,7.1741]
[1764802763496,17.8809,3191.3,3191.2,14.9286]
[1764802764200,10.57731207,3191.3,3191.2,14.9286]
[1764802764400,3.21031207,3191.3,3191.2,14.9286]
[1764802765804,0.00251207,3191.3,3191.2,14.9286]
[1764802765998,14.67561207,3191.3,3191.2,7.1741]
[1764802766302,14.67561207,3191.3,3191.2,14.9286]
[1764802767394,7.36951207,3191.3,3191.2,14.9286]
[1764802768104,0.00251207,3191.3,3191.2,14.9286]
[1764802770308,7.36951207,3191.3,3191.2,14.9286]
[1764802770604,14.67561207,3191.3,3191.2,14.9286]
[1764802773107,14.67561207,3191.3,3191.2,7.1741]
[1764802773311,7.367,3191.1,3191.0,19.2412]
[1764802773703,7.3458,3190.5,3190.4,8.61564547]
[1764802773912,14.5365,3190.4,3190.3,7.7893]
[1764802777813,14.5365,3190.4,3190.0,7.5204]
[1764802778011,7.3458,3189.9,3189.6,4.04114306]
[1764802778314,14.5365,3189.7,3189.6,18.55479759]
[1764802778608,14.5365,3189.7,3189.6,19.4014289]
[1764802783020,14.5365,3189.7,3189.6,16.1936289]
[1764802783220,7.3458,3189.7,3189.6,16.1936289]
[1764802783918,0.00470123,3190.0,3189.9,15.0903]
[1764802784114,3.2078,3190.4,3189.9,15.93693131]
[1764802784422,3.2078,3190.4,3190.3,15.0903]
[1764802784622,10.84,3190.4,3190.3,15.0903]
[1764802785109,3.2078,3190.4,3190.3,15.0903]
[1764802785620,18.3369,3190.4,3190.3,7.5224]
[1764802785822,10.84,3190.4,3190.3,15.0903]
[1764802787923,18.3369,3190.4,3190.3,15.0903]
[1764802788724,15.1291,3190.1,3190.0,19.6738]
[1764802788923,15.1291,3190.1,3190.0,20.52082938]
[1764802789421,15.1291,3190.1,3190.0,8.36942938]
[1764802790723,15.1291,3190.1,3190.0,0.84702938]
[1764802791918,15.1291,3190.1,3190.0,20.52082938]
[1764802794227,15.1291,3190.1,3190.0,0.84702938]
[1764802794430,15.1291,3189.7,3189.6,18.30509759]
[1764802794619,15.1291,3189.7,3189.6,19.15276116]
[1764802795125,7.6322,3189.7,3189.6,19.15276116]
[1764802795319,15.1291,3189.7,3189.6,19.15276116]
[1764802795828,7.6322,3189.7,3189.6,19.15276116]
[1764802796625,15.1291,3189.7,3189.6,0.00699759]
[1764802797425,15.1291,3189.7,3189.6,7.52939759]
[1764802797822,15.1291,3189.7,3189.6,15.94704891]
[1764802798522,15.6291,3189.7,3189.6,8.37914891]
[1764802798828,15.6291,3189.7,3189.6,15.94704891]
[1764802799430,15.6291,3189.7,3189.6,8.37914891]
[1764802799926,0.5,3189.7,3189.6,15.94704891]
[1764802800226,4.2819,3192.0,3190.3,15.0903]
[1764802800227,6.55346526,3191.5,3190.3,15.0903]
[1764802800426,2.7427,3190.5,3190.4,0.84926203]
[1764802800630,2.7427,3190.5,3190.0,15.0903]
[1764802800631,15.1291,3190.1,3190.0,15.0903]
[1764802800832,4.2819,3190.0,3189.6,0.00699759]
[1764802801026,15.1291,3189.8,3189.7,15.93985491]
[1764802801229,15.1291,3189.8,3189.7,0.84955491]
[1764802801433,15.1291,3189.8,3189.2,4.0405155]
[1764802801434,15.1291,3189.3,3189.2,4.0405155]
[1764802801633,19.411,3189.0,3188.9,0.8327155]
[1764802801823,7.4969,3188.6,3188.2,8.62052065]
[1764802802127,7.6322,3188.5,3188.4,15.0903]
[1764802802324,7.63555982,3188.5,3188.4,15.09360439]
[1764802802523,0.00335982,3188.5,3188.4,15.09360439]
[1764802803131,3.2078,3189.0,3188.9,15.0903]
[1764802803327,15.3,3189.0,3188.9,7.5224]
[1764802803532,10.84,3189.0,3188.9,15.2551]
[1764802803731,3.2078,3189.4,3188.9,15.2551]
[1764802804135,19.762,3189.0,3188.6,3.2078]
[1764802804327,15.4222,3188.7,3188.6,18.2574]
[1764802804629,7.7544,3188.8,3188.7,15.0496]
[1764802804934,7.75665039,3189.4,3189.3,15.0496]
[1764802805133,7.75665039,3189.4,3189.3,18.2574]
[1764802806234,0.00225039,3189.4,3189.3,18.2574]
[1764802807231,3.2078,3190.4,3190.0,19.6331]
[1764802807633,8.084,3190.8,3190.0,19.6331]
[1764802807934,3.2078,3190.9,3190.0,19.6331]
[1764802808138,0.00653018,3190.1,3190.0,19.6331]
[1764802809534,15.42873018,3190.1,3190.0,7.3169]
[1764802809841,15.42873018,3190.1,3189.8,3.2078]
[1764802809842,15.4222,3189.9,3189.8,3.2078]
[1764802810140,15.4222,3189.9,3189.8,10.5247]
[1764802810333,7.7544,3189.9,3189.8,18.2574]
[1764802810532,15.4222,3189.9,3189.8,18.2574]
[1764802810730,2.76974315,3192.0,3190.0,15.0496]
[1764802810936,2.24640362,3193.9,3193.5,7.3169]
[1764802811231,2.24640362,3193.9,3192.5,4.3737]
[1764802811232,15.4222,3193.5,3192.5,5.48045863]
[1764802811540,15.4222,3193.5,3193.4,3.2078]
[1764802811841,12.97445,3195.6,3194.4,15.0496]
[1764802812028,19.7690294,3195.0,3194.9,3.2078]
[1764802812332,19.7690294,3195.0,3194.9,18.2574]
[1764802812333,0.0070294,3195.0,3194.9,18.2574]
[1764802812533,7.7614294,3195.0,3194.9,3.2078]
[1764802812735,19.7690294,3195.0,3194.9,3.2078]
[1764802813038,15.4222,3194.5,3194.4,3.2078]
[1764802817442,7.7544,3194.1,3194.0,3.2078]
[1764802817630,15.4222,3194.1,3194.0,3.2078]
[1764802819634,4.3398,3193.8,3193.7,3.2078]
[1764802819850,32.568,3193.8,3193.7,3.2078]
[1764802820139,24.9002,3193.8,3193.7,3.2078]
[1764802820345,32.568,3193.8,3193.7,3.2078]
[1764802820640,3.2078,3194.7,3194.5,0.1565]
[1764802820842,3.2078,3196.7,3194.6,5.23357828]
[1764802821046,4.3398,3196.8,3196.3,3.2078]
[1764802821251,15.4222,3195.8,3195.7,3.03108302]
[1764802821449,15.4222,3195.8,3195.2,3.2078]
[1764802821746,15.42623465,3195.8,3195.2,3.2156844]
[1764802821946,7.7544,3195.3,3195.2,3.2156844]
[1764802822945,15.4222,3195.3,3195.2,3.2156844]
[1764802823541,28.2242,3195.3,3195.2,3.2156844]
[1764802823746,15.4222,3194.8,3194.7,3.2078]
[1764802824653,15.4222,3194.8,3194.7,3.21184971]
[1764802824948,4.3398,3195.0,3194.7,3.21184971]
[1764802824949,0.00466903,3195.1,3194.7,3.21184971]
[1764802827558,0.00466903,3195.1,3195.0,15.0496]
[1764802827766,0.00403465,3195.8,3195.0,19.6482]
[1764802828071,0.00403465,3195.8,3195.6,3.2078]
[1764802828761,0.00403465,3195.8,3195.7,7.3169]
[1764802828965,0.00403465,3195.8,3195.7,15.0496]
[1764802829267,0.00403465,3195.8,3195.7,7.3169]
[1764802831063,0.00403465,3195.8,3195.7,15.0496]
[1764802832864,7.75843465,3195.8,3195.7,7.3169]
[1764802833064,7.75843465,3195.8,3195.6,3.2078]
[1764802833065,7.7544,3195.7,3195.6,3.2078]
[1764802833266,15.4222,3195.7,3195.6,3.2078]
[1764802833766,4.3192,3196.8,3195.7,7.3984]
[1764802834068,4.3192,3196.8,3196.2,3.2078]
[1764802834269,4.3192,3196.8,3196.2,3.2124938]
[1764802834864,15.2395,3196.3,3196.2,3.2124938]
[1764802835170,15.24188389,3196.3,3196.2,2.89251617]
[1764802835473,15.24188389,3196.3,3195.0,4.5986]
[1764802835474,15.2395,3195.7,3195.6,3.2078]
[1764802835667,7.5567,3195.7,3195.6,3.2078]
[1764802835977,4.3192,3196.2,3195.6,18.034]
[1764802836370,7.56139379,3196.2,3196.1,7.3984]
[1764802836764,7.56139379,3196.2,3195.6,6.1049938]
[1764802836965,7.5567,3195.7,3195.6,3.2124938]
[1764802837170,15.2395,3195.7,3195.6,3.2124938]
[1764802838071,15.2395,3195.7,3195.6,0.0046938]
[1764802839669,15.2395,3195.7,3194.1,1.10675863]
[1764802839670,15.2395,3194.8,3194.6,3.2078]
[1764802839867,15.2395,3194.8,3193.3,1.86927828]
[1764802839868,18.60379,3194.8,3194.1,3.2078]
[1764802840069,2.72995607,3194.8,3194.7,14.83024971]
[1764802840372,4.3192,3197.4,3196.2,14.8262]
[1764802840673,15.2395,3196.4,3195.6,7.7333]
[1764802840864,15.2395,3196.4,3195.2,1.64565788]
[1764802840865,15.2395,3195.8,3195.7,0.81952352]
[1764802841069,15.2395,3195.8,3195.1,3.2078]
[1764802841369,7.56510848,3195.8,3195.5,3.2078]
[1764802841562,7.5567,3195.6,3195.5,3.2078]
[1764802841766,0.00840848,3195.8,3195.5,11.42636878]
[1764802841968,0.00840848,3195.8,3195.6,0.82016878]
[1764802842168,7.5567,3195.7,3195.5,3.2078]
[1764802842482,7.5567,3195.7,3195.6,0.8199672]
[1764802842672,0.00840848,3195.8,3195.6,0.8199672]
[1764802842977,15.07140848,3195.8,3195.7,0.8199672]
[1764802843176,0.00840848,3195.8,3195.7,0.8199672]
[1764802843379,0.00840848,3195.8,3195.7,8.6013672]
[1764802844274,15.08120848,3195.8,3195.7,0.8199672]
[1764802844470,7.57490848,3195.8,3195.7,0.8199672]
[1764802845867,15.08120848,3195.8,3195.7,0.8199672]
[1764802850072,0.00840848,3195.8,3195.7,8.6013672]
[1764802850377,0.00840848,3195.8,3195.7,16.3644672]
[1764802850577,7.57490848,3195.8,3195.7,8.6013672]
[1764802850773,15.08120848,3195.8,3195.7,0.8199672]
[1764802852784,15.23764848,3195.8,3195.7,0.8199672]
[1764802853577,15.0728,3195.6,3195.5,3.2078]
[1764802855487,15.0728,3195.2,3195.1,3.2124938]
[1764802855673,1.67213554,3196.4,3195.5,4.583]
[1764802855876,1.5455977,3197.3,3196.0,4.583]
[1764802856080,3.2078,3197.2,3196.4,3.2078]
[1764802856279,11.499,3197.1,3196.4,3.2078]
[1764802856787,11.50213361,3197.1,3196.4,3.2078]
[1764802857188,14.70993361,3197.1,3196.4,3.2078]
[1764802857384,7.5665,3196.5,3196.4,10.9892]
[1764802857586,14.70993361,3197.1,3196.4,10.9892]
[1764802857789,11.50213361,3197.1,3196.4,10.9892]
[1764802858285,3.21093361,3197.1,3196.4,10.9892]
[1764802858590,12.818,3197.0,3196.4,10.9892]
[1764802858785,15.0728,3196.5,3196.4,3.2078]
[1764802859280,19.4524,3196.5,3196.4,3.2078]
[1764802859484,19.4524,3196.5,3195.9,3.2078]
[1764802859880,7.5665,3196.0,3195.9,3.2078]
[1764802860084,20.3785,3196.0,3195.9,3.2078]
[1764802860482,3.2078,3196.7,3196.0,4.583]
[1764802860792,5.932,3196.6,3196.0,4.583]
[1764802860988,3.2078,3196.7,3196.6,15.5445]
[1764802861194,7.506,3196.8,3196.7,15.5445]
[1764802861487,3.2078,3197.3,3197.0,15.5445]
[1764802861693,12.82813361,3197.1,3197.0,20.13150915]
[1764802862090,2.2095264,3198.7,3197.0,20.13150915]
[1764802862091,3.2078,3197.8,3197.7,7.7814]
[1764802862592,3.2078,3197.8,3197.3,3.2078]
[1764802862593,18.2806,3197.8,3197.3,3.2078]
[1764802863190,18.28311835,3197.8,3197.3,3.2078]
[1764802863397,12.825,3197.7,3197.3,3.2078]
[1764802864201,7.7725,3197.4,3197.3,3.2078]
[1764802864499,7.7725,3197.4,3197.0,4.58700915]
[1764802864694,7.7725,3197.4,3197.3,7.1109]
[1764802864900,7.7725,3197.4,3197.3,10.3187]
[1764802865098,7.7725,3197.4,3197.3,7.1109]
[1764802865397,0.00251835,3197.8,3197.7,14.3015]
[1764802865592,5.34631628,3199.1,3198.3,14.3015]
[1764802865898,8.228,3198.6,3198.5,7.1109]
[1764802866104,10.138,3199.7,3198.5,7.1109]
[1764802866105,6.91262036,3200.8,3200.7,7.1109]
[1764802866397,4.62373,3202.2,3200.7,3.92634742]
[1764802866398,2.13851628,3201.5,3200.7,3.92634742]
[1764802866596,0.00260973,3201.5,3201.4,3.2078]
[1764802866895,3.9118,3201.0,3200.9,3.2078]
[1764802867996,3.92905802,3201.0,3200.9,3.2078]
[1764802868193,0.02588703,3201.0,3200.9,3.2078]
[1764802868595,0.03450039,3201.0,3200.9,3.2078]
[1764802869099,0.04308672,3201.0,3200.9,3.2078]
[1764802869294,0.19926672,3201.0,3200.9,3.2078]
[1764802869695,0.04308672,3201.0,3200.9,3.2078]
[1764802870294,13.06808672,3201.0,3200.9,3.2078]
[1764802871299,15.14238672,3201.0,3200.9,3.2078]
[1764802871499,28.16638672,3201.0,3200.9,3.2078]
[1764802871900,28.32256672,3201.0,3200.9,3.2078]
[1764802872302,7.7725,3200.8,3200.7,3.21039714]
[1764802872506,15.0993,3200.5,3200.4,3.2124864]
[1764802872705,15.0993,3200.5,3200.4,2.88635457]
[1764802872998,7.7725,3200.0,3199.9,3.2078]
[1764802873194,28.16238672,3200.0,3199.9,3.2078]
[1764802873396,28.16238672,3200.0,3199.9,3.21031889]
[1764802873693,28.16238672,3200.0,3199.9,0.00251889]
[1764802874201,28.16238672,3200.0,3199.9,3.21031889]
[1764802874798,28.17100964,3200.0,3199.9,3.21031889]
[1764802874997,28.17963256,3200.0,3199.9,3.21031889]
[1764802875302,28.1968784,3200.0,3199.9,3.21031889]
[1764802875499,28.20547344,3200.0,3199.9,3.21031889]
[1764802876400,4.4676,3201.1,3199.9,3.21031889]
[1764802876401,13.001,3202.1,3201.1,4.6944]
[1764802876599,1.8798378,3201.7,3201.1,3.2078]
[1764802876903,10.13,3201.4,3201.1,3.2078]
[1764802877204,11.578,3201.3,3201.1,3.2078]
[1764802877498,1.8798378,3201.7,3201.1,3.2078]
[1764802877804,23.177,3201.4,3201.1,3.2078]
[1764802878206,0.15617,3201.3,3201.1,3.2078]
[1764802880395,23.177,3201.4,3199.9,0.00251889]
[1764802880396,0.15619,3201.0,3200.6,3.2078]
[1764802880601,2.0360278,3201.0,3200.6,3.2078]
[1764802881299,23.153,3200.9,3200.6,3.2078]
[1764802881501,15.0993,3200.7,3200.6,3.2078]
[1764802881899,38.2483,3200.7,3200.6,3.2078]
[1764802883609,38.26107018,3200.7,3200.6,3.2078]
[1764802883910,38.25777136,3200.7,3200.6,3.2078]
[1764802884115,38.26547254,3200.7,3200.6,3.2078]
[1764802884407,38.27317372,3200.7,3200.6,3.2078]
[1764802884708,38.28038672,3200.7,3200.6,3.2078]
[1764802884901,38.43658672,3200.7,3200.6,3.2078]
[1764802886506,7.3268,3200.3,3200.2,3.2078]
[1764802886708,15.25552,3200.3,3200.2,3.2078]
[1764802887011,7.92873,3200.0,3199.9,0.00251889]
[1764802887304,3.2078,3200.5,3199.9,0.00251889]
[1764802887305,13.009,3201.1,3201.0,14.3015]
[1764802887507,13.009,3201.1,3201.0,17.5093]
[1764802887713,13.009,3201.1,3201.0,18.39932791]
[1764802888008,13.009,3201.1,3200.5,3.2078]
[1764802888215,13.009,3201.1,3200.8,3.2078]
[1764802888407,0.00786,3202.2,3201.1,4.6944]
[1764802888714,7.7725,3201.7,3201.6,3.2078]
[1764802889103,7.7725,3201.7,3201.6,4.1000775]
[1764802889411,7.7725,3201.7,3201.3,0.0046864]
[1764802889412,7.77475944,3201.7,3201.3,0.0046864]
[1764802889613,7.77475944,3201.7,3201.4,0.89158002]
[1764802889803,7.77475944,3201.7,3201.5,0.89158002]
[1764802890006,0.00225944,3201.7,3201.6,0.89158002]
[1764802890313,20.82775944,3201.7,3201.6,0.89158002]
[1764802891313,28.15455944,3201.7,3201.3,0.0046864]
[1764802891513,15.11059668,3201.5,3201.4,0.89138762]
[1764802891818,15.11436224,3201.5,3201.4,0.89138762]
[1764802892016,38.28724502,3201.5,3201.4,0.89138762]
[1764802892518,38.2891278,3201.5,3201.4,0.89138762]
[1764802892715,0.09064158,3202.8,3202.2,4.6944]
[1764802892921,0.25,3205.0,3204.8,4.6944]
[1764802893111,0.15594,3206.0,3204.9,0.89011366]
[1764802893308,3.2078,3205.7,3204.8,4.6944]
[1764802893517,3.2078,3205.3,3204.9,0.88777671]
[1764802893708,10.0668,3205.2,3205.0,0.88777671]
[1764802893912,11.195,3205.1,3204.9,3.21016032]
[1764802894210,0.15595,3205.9,3204.9,0.00236032]
[1764802894404,16.3488,3205.8,3205.1,3.2078]
[1764802894613,16.3488,3205.8,3205.2,0.88577189]
[1764802894911,16.35107333,3205.8,3205.1,3.2078]
[1764802895219,0.15822333,3205.8,3205.7,3.2078]
[1764802895517,16.52202333,3205.8,3205.3,3.2078]
[1764802895913,0.0107543,3205.6,3205.3,3.2078]
[1764802896108,3.2078,3205.4,3204.9,0.00236032]
[1764802896416,0.01774304,3205.2,3204.9,0.00236032]
[1764802897308,0.01774304,3205.2,3204.6,0.0046864]
[1764802897309,3.2078,3205.0,3204.6,0.0046864]
[1764802897614,0.156,3204.7,3203.8,3.2078]
[1764802898008,3.86539579,3209.7,3204.8,4.3319]
[1764802898009,3.2078,3205.7,3204.8,4.3319]
[1764802898213,3.2078,3205.7,3204.8,0.00397127]
[1764802898214,3.2078,3205.5,3204.8,0.00397127]
[1764802898410,3.36377,3205.5,3204.8,0.00397127]
[1764802898603,0.15598,3205.2,3204.8,0.00865767]
[1764802898809,23.305,3205.1,3204.8,0.00865767]
[1764802899010,23.302,3205.0,3204.8,0.00865767]
[1764802899208,3.2078,3204.9,3204.8,0.00865767]
[1764802899410,0.15599,3204.9,3204.8,0.00865767]
[1764802899721,3.36379,3204.9,3204.8,0.00865767]
[1764802900020,26.66179,3204.9,3204.8,0.00865767]
[1764802900220,26.65879,3204.9,3204.8,0.00865767]
[1764802900420,4.4596,3204.8,3204.1,3.2078]
[1764802900615,3.36382,3204.5,3204.1,3.2078]
[1764802900822,13.17,3204.4,3204.1,3.2078]
[1764802901518,0.15602,3204.5,3204.1,3.21160712]
[1764802901713,34.26751701,3281.6,3207.2,4.6168]
[1764802901714,0.15581,3208.7,3207.2,4.6168]
[1764802901913,3.2078,3208.3,3207.3,3.2078]
[1764802902115,3.2078,3207.8,3207.0,3.2078]